bitfinex/quotes_SOLUSD_20260108
["timestamp","ask_amount","ask_price","bid_price","bid_amount"]
[1767872624007,8.12523006,134.68,134.65,0.7237129]
[1767872624729,0.41186105,134.67,134.64,0.7237129]
[1767872628029,7.83744055,134.67,134.64,0.7237129]
[1767872628533,0.69731694,134.66,134.64,0.7237129]
[1767872630125,0.69731694,134.66,134.63,0.7237129]
[1767872631440,0.69731694,134.66,134.62,7.71240533]
[1767872631441,5.53269791,134.65,134.62,0.7237129]
[1767872631617,5.53269791,134.64,134.62,0.7237129]
[1767872631817,8.12635557,134.66,134.62,0.7237129]
[1767872632136,5.53228177,134.65,134.62,0.7237129]
[1767872632449,4.08228177,134.64,134.62,7.42819583]
[1767872632635,0.70020033,134.67,134.63,2.82763562]
[1767872632931,8.12548385,134.68,134.63,2.82763562]
[1767872633442,0.70020033,134.68,134.64,2.82763562]
[1767872633741,0.72786099,134.64,134.59,0.28432314]
[1767872634035,0.70020033,134.63,134.6,0.28432314]
[1767872635534,3.52783595,134.63,134.6,0.28432314]
[1767872636554,5.12110121,134.63,134.6,0.28432314]
[1767872637136,0.70020033,134.63,134.6,0.25666248]
[1767872640853,18.56634144,134.66,134.61,0.25666248]
[1767872640854,8.12709364,134.65,134.61,0.25666248]
[1767872641059,12.54799452,134.65,134.61,0.25666248]
[1767872641358,8.12709364,134.65,134.61,0.25666248]
[1767872641651,0.70020033,134.64,134.61,0.25666248]
[1767872641844,0.70020033,134.63,134.6,0.25666248]
[1767872650171,0.70020033,134.63,134.59,7.68625883]
[1767872650470,0.70020033,134.63,134.6,0.25666248]
[1767872657475,5.12110121,134.63,134.6,0.25666248]
[1767872661187,0.66957776,134.62,134.6,0.25666248]
[1767872661395,5.09047864,134.64,134.6,7.6860259]
[1767872661582,0.66957776,134.63,134.6,7.6860259]
[1767872662797,0.66957776,134.63,134.6,0.25666248]
[1767872663297,0.66957776,134.63,134.6,7.68604374]
[1767872663698,5.09047864,134.64,134.61,0.25666248]
[1767872664485,0.66957776,134.63,134.61,0.25666248]
[1767872665697,0.66957776,134.63,134.6,7.68604374]
[1767872665896,0.66957776,134.64,134.61,0.25666248]
[1767872667116,0.66957776,134.64,134.6,7.68604374]
[1767872669408,0.66957776,134.64,134.61,0.25666248]
[1767872675299,0.67756755,134.62,134.59,0.25666248]
[1767872675505,0.67756755,134.62,134.59,7.6863333]
[1767872675892,5.09846843,134.61,134.58,0.25666248]
[1767872676295,0.67756755,134.6,134.57,7.4308477]
[1767872676706,5.09846843,134.61,134.58,0.25666248]
[1767872678600,5.09846843,134.61,134.58,7.68706502]
[1767872680218,0.67756755,134.61,134.58,7.68706502]
[1767872682013,0.67756755,134.61,134.54,0.2]
[1767872682014,0.70480855,134.58,134.54,0.2]
[1767872682214,5.09846843,134.56,134.54,0.2]
[1767872682415,0.67756755,134.54,134.51,0.28432314]
[1767872682719,0.67756755,134.51,134.47,0.65988399]
[1767872682897,19.08153415,134.53,134.47,0.65988399]
[1767872682898,10.62000258,134.5,134.47,0.65988399]
[1767872683094,5.52018399,134.49,134.47,0.65988399]
[1767872683296,0.67756755,134.5,134.47,0.65988399]
[1767872683513,5.09846843,134.5,134.47,0.65988399]
[1767872683822,0.67756755,134.5,134.47,0.65988399]
[1767872685229,0.67756755,134.5,134.47,0.63264299]
[1767872685734,8.11261583,134.5,134.47,0.63264299]
[1767872686217,0.67756755,134.49,134.46,0.2]
[1767872687121,12.53351671,134.5,134.46,0.85988399]
[1767872688104,12.53351671,134.5,134.47,0.65988399]
[1767872688538,0.67756755,134.5,134.47,0.65988399]
[1767872689022,12.5334226,134.5,134.46,0.2]
[1767872689227,0.67756755,134.49,134.46,0.85988399]
[1767872689601,12.5334226,134.5,134.46,0.85988399]
[1767872690217,0.67756755,134.49,134.46,0.85988399]
[1767872691605,12.5334226,134.5,134.46,0.85988399]
[1767872691809,12.5334226,134.5,134.47,0.65988399]
[1767872692107,0.67756755,134.49,134.46,0.85988399]
[1767872692507,5.09846843,134.49,134.46,0.85988399]
[1767872693406,0.67756755,134.49,134.46,0.85988399]
[1767872694110,12.5342839,134.49,134.46,0.85988399]
[1767872694729,0.67756755,134.48,134.46,0.2]
[1767872695240,0.67756755,134.48,134.44,0.2]
[1767872695241,0.67756755,134.47,134.44,0.2]
[1767872695535,0.67756755,134.47,134.44,0.85988399]
[1767872696712,0.67756755,134.47,134.44,8.29807905]
[1767872696912,0.67756755,134.47,134.44,0.85988399]
[1767872697120,0.67756755,134.47,134.44,8.29814569]
[1767872697949,0.67756755,134.51,134.45,0.65988399]
[1767872698137,0.67756755,134.51,134.46,0.65988399]
[1767872698437,0.67756755,134.49,134.46,0.65988399]
[1767872699029,0.67756755,134.49,134.46,3.49555297]
[1767872699215,0.67756755,134.49,134.46,0.65988399]
[1767872699422,0.67756755,134.49,134.45,10.27297642]
[1767872700036,0.67756755,134.49,134.45,10.93286041]
[1767872701244,0.67756755,134.49,134.45,0.65988399]
[1767872701537,0.67756755,134.49,134.45,8.09757652]
[1767872701742,0.67756755,134.49,134.46,3.49555297]
[1767872701914,2.83566898,134.52,134.48,0.65988399]
[1767872701915,0.67756755,134.51,134.48,0.65988399]
[1767872702109,0.67756755,134.51,134.47,3.49555297]
[1767872702320,3.5026085,134.53,134.49,0.68468408]
[1767872702640,0.66693952,134.56,134.53,7.43328625]
[1767872702813,0.66693952,134.56,134.53,2.83566898]
[1767872703219,0.66693952,134.56,134.52,10.26926051]
[1767872704417,0.66693952,134.56,134.52,10.93199775]
[1767872704621,0.66693952,134.56,134.53,2.83566898]
[1767872705516,0.66693952,134.56,134.52,10.93199775]
[1767872705826,0.66693952,134.56,134.52,10.26926051]
[1767872706029,0.68626438,134.55,134.5,10.27019331]
[1767872706533,0.68626438,134.55,134.51,7.43412049]
[1767872708140,0.68626438,134.54,134.51,7.43412049]
[1767872708830,0.68626438,134.52,134.49,7.43518094]
[1767872709220,0.68626438,134.52,134.5,7.43480856]
[1767872709639,0.68626438,134.55,134.51,0.66273724]
[1767872709843,0.68626438,134.54,134.5,7.43480856]
[1767872710138,0.68626438,134.54,134.5,8.0975458]
[1767872710345,0.68626438,134.54,134.5,10.93321478]
[1767872713137,0.68626438,134.54,134.5,8.0975458]
[1767872714432,0.68626438,134.54,134.5,7.43480856]
[1767872715636,0.68626438,134.54,134.5,10.27047754]
[1767872715828,0.68626438,134.54,134.5,10.93321478]
[1767872716247,0.68626438,134.55,134.51,0.66273724]
[1767872717831,0.68626438,134.55,134.52,0.66273724]
[1767872718252,0.68626438,134.55,134.52,8.09634724]
[1767872718427,0.68626438,134.55,134.5,3.11999212]
[1767872718635,0.68626438,134.55,134.51,7.43439149]
[1767872720142,0.68626438,134.54,134.5,7.43494423]
[1767872720648,0.68626438,134.53,134.5,7.43494423]
[1767872721032,0.68626438,134.53,134.49,21.67801098]
[1767872721256,0.68626438,134.52,134.49,21.67801098]
[1767872721732,0.68626438,134.52,134.5,4.7]
[1767872722332,0.68626438,134.54,134.5,12.79751176]
[1767872722565,0.68626438,134.54,134.51,0.66273724]
[1767872722941,0.68626438,134.54,134.5,12.79751176]
[1767872723758,0.68626438,134.54,134.51,0.66273724]
[1767872723930,3.52193336,134.55,134.51,8.09705962]
[1767872724133,0.68626438,134.55,134.51,8.09705962]
[1767872724745,0.68626438,134.55,134.5,4.7]
[1767872724746,3.52193336,134.53,134.5,4.7]
[1767872724940,3.52193336,134.54,134.5,0.66273724]
[1767872725142,5.49410923,134.53,134.5,0.66273724]
[1767872725345,0.68626438,134.54,134.5,0.66273724]
[1767872725549,0.68626438,134.52,134.48,3.78272936]
[1767872725744,0.68626438,134.52,134.5,7.43467234]
[1767872726333,10.9543999,134.55,134.51,0.66273724]
[1767872726551,0.68626438,134.54,134.5,8.09740958]
[1767872726754,0.68626438,134.55,134.51,0.66273724]
[1767872727256,0.68626438,134.57,134.53,0.66273724]
[1767872727431,5.50627362,134.56,134.53,0.66273724]
[1767872727634,5.50627362,134.55,134.53,0.66273724]
[1767872727856,3.52193336,134.57,134.53,0.66273724]
[1767872728154,5.50626853,134.56,134.53,0.66273724]
[1767872728340,5.50626853,134.55,134.53,0.66273724]
[1767872728541,3.52193336,134.57,134.53,0.66273724]
[1767872728742,5.50650895,134.56,134.53,0.66273724]
[1767872728943,5.50650895,134.55,134.53,0.66273724]
[1767872729164,0.68626438,134.56,134.53,0.66273724]
[1767872729462,0.68626438,134.54,134.51,0.66273724]
[1767872730156,0.68626438,134.55,134.52,0.66273724]
[1767872732059,0.68626438,134.55,134.51,7.43429742]
[1767872732363,0.68626438,134.55,134.51,8.09558062]
[1767872732567,0.68626438,134.55,134.52,7.43382054]
[1767872732863,0.72142585,134.56,134.52,8.09510374]
[1767872733047,5.50745861,134.55,134.53,0.6612832]
[1767872733240,3.55709483,134.57,134.53,0.6612832]
[1767872733441,5.5060344,134.56,134.53,0.6612832]
[1767872733650,5.5060344,134.55,134.53,0.6612832]
[1767872733853,0.72142585,134.56,134.52,10.26948952]
[1767872734067,0.72142585,134.54,134.52,10.26948952]
[1767872734462,0.72142585,134.54,134.52,7.43382054]
[1767872734659,0.72142585,134.54,134.52,10.26948952]
[1767872734965,0.72142585,134.56,134.52,10.26948952]
[1767872735168,6.22476738,134.55,134.52,10.26948952]
[1767872735343,0.72142585,134.55,134.52,10.26948952]
[1767872735961,0.72142585,134.55,134.52,10.93077272]
[1767872737961,0.72142585,134.57,134.53,0.6612832]
[1767872738165,5.50372678,134.56,134.53,0.6612832]
[1767872738369,0.72142585,134.57,134.53,0.6612832]
[1767872738672,6.22595744,134.56,134.53,0.6612832]
[1767872738869,0.72142585,134.56,134.53,0.6612832]
[1767872739171,23.84636083,134.58,134.54,0.6612832]
[1767872739172,0.72142585,134.57,134.54,0.6612832]
[1767872739371,5.50550754,134.56,134.54,0.6612832]
[1767872739571,0.72142585,134.57,134.54,0.6612832]
[1767872739768,5.50551194,134.56,134.54,0.6612832]
[1767872739954,0.72142585,134.57,134.54,0.6612832]
[1767872740160,5.50551772,134.56,134.54,0.6612832]
[1767872740363,0.72142585,134.57,134.54,0.6612832]
[1767872740561,5.50709396,134.56,134.54,0.60128324]
[1767872740761,0.72142585,134.57,134.54,0.60128324]
[1767872740950,5.50709396,134.56,134.54,0.60128324]
[1767872741268,0.72142585,134.57,134.54,0.60128324]
[1767872741474,5.50922713,134.56,134.54,0.60128324]
[1767872741676,0.72142585,134.57,134.54,0.60128324]
[1767872741851,5.50945328,134.56,134.54,0.60128324]
[1767872742051,0.72142585,134.57,134.54,0.60128324]
[1767872742258,5.50714337,134.56,134.54,0.60128324]
[1767872742458,5.50714337,134.55,134.54,0.60128324]
[1767872742658,0.72142585,134.57,134.53,7.43313621]
[1767872742875,0.72142585,134.57,134.53,8.09441941]
[1767872743076,0.72142585,134.57,134.53,10.93008839]
[1767872743574,0.72142585,134.57,134.54,0.6612832]
[1767872745784,8.15251828,134.57,134.54,0.6612832]
[1767872746271,0.72142585,134.57,134.54,0.6612832]
[1767872747857,0.72142585,134.57,134.53,10.26875543]
[1767872747858,0.72142585,134.55,134.51,8.09544964]
[1767872748059,0.53156793,134.55,134.51,8.09544964]
[1767872749767,2.83566898,134.56,134.52,0.6612832]
[1767872749986,10.9888836,134.56,134.52,0.6612832]
[1767872750284,3.55709483,134.56,134.53,0.6612832]
[1767872750784,0.72142585,134.56,134.53,0.6612832]
[1767872751480,0.72142585,134.55,134.52,0.6612832]
[1767872755272,5.51598596,134.54,134.52,0.6612832]
[1767872755471,0.72142585,134.55,134.52,0.6612832]
[1767872755683,5.51598724,134.54,134.52,0.6612832]
[1767872755881,0.72142585,134.55,134.51,7.43417963]
[1767872756062,6.23723408,134.54,134.51,7.43417963]
[1767872756378,0.72142585,134.55,134.51,8.09546283]
[1767872756586,5.51590836,134.54,134.51,8.09546283]
[1767872756786,0.72142585,134.55,134.51,8.09546283]
[1767872756986,0.72142585,134.53,134.5,8.09606803]
[1767872758160,30.0,134.52,134.5,8.09606803]
[1767872758589,0.72142585,134.53,134.5,8.09606803]
[1767872759099,0.72142585,134.53,134.49,8.09657528]
[1767872760167,4.42548341,134.53,134.49,7.43529208]
[1767872760367,4.42548341,134.53,134.48,18.58926532]
[1767872760368,0.72142585,134.51,134.48,8.09714297]
[1767872760992,6.23740107,134.5,134.47,8.09780173]
[1767872761285,0.72142585,134.5,134.49,0.7]
[1767872761484,6.23548686,134.5,134.47,8.09780173]
[1767872761789,0.72142585,134.5,134.47,8.09780173]
[1767872762880,0.6753745,134.49,134.46,8.14876812]
[1767872763801,0.6753745,134.46,134.44,0.2]
[1767872763974,5.5084452,134.45,134.44,0.2]
[1767872764171,0.6753745,134.46,134.44,0.2]
[1767872766265,5.10085791,134.47,134.44,0.2]
[1767872767192,0.6753745,134.46,134.44,0.2]
[1767872768176,0.6753745,134.47,134.44,8.34950487]
[1767872768579,0.6753745,134.47,134.44,0.91161209]
[1767872768775,5.10085791,134.47,134.44,0.91161209]
[1767872770977,0.6753745,134.45,134.44,0.2]
[1767872771177,5.10085791,134.45,134.44,0.2]
[1767872771379,0.70195451,134.48,134.44,8.35046843]
[1767872771700,0.70195451,134.48,134.44,12.77595184]
[1767872772079,0.70195451,134.48,134.44,12.06369332]
[1767872772279,0.70195451,134.48,134.44,8.35046843]
[1767872772477,0.70195451,134.47,134.44,8.35046843]
[1767872778501,0.70195451,134.45,134.44,0.2]
[1767872778704,0.70195451,134.45,134.42,7.43886304]
[1767872778915,0.70195451,134.45,134.41,33.09143599]
[1767872778916,0.70195451,134.44,134.41,21.93188765]
[1767872781506,0.70195451,134.43,134.41,0.2]
[1767872782291,0.70195451,134.43,134.39,0.91225852]
[1767872782292,0.70195451,134.42,134.39,0.2]
[1767872782511,0.70195451,134.42,134.4,7.44046365]
[1767872783312,0.70195451,134.43,134.4,8.15272217]
[1767872784205,0.70195451,134.44,134.41,8.15215945]
[1767872790503,18.59086848,134.48,134.44,0.71225852]
[1767872790504,0.70195451,134.48,134.44,0.71225852]
[1767872792708,0.69095844,134.47,134.44,0.71225852]
[1767872792914,0.69095844,134.47,134.43,7.43852819]
[1767872793101,0.69095844,134.46,134.43,0.69486969]
[1767872793500,0.69095844,134.46,134.43,8.13341495]
[1767872797537,5.11644185,134.45,134.42,8.13408153]
[1767872797821,0.69095844,134.45,134.42,8.13408153]
[1767872798815,0.69095844,134.45,134.42,0.69486969]
[1767872799023,0.69095844,134.46,134.43,8.13367519]
[1767872800416,0.69095844,134.47,134.44,0.69486969]
[1767872800612,0.69095844,134.47,134.44,0.63486971]
[1767872801334,5.49490129,134.46,134.44,0.63486971]
[1767872801508,0.69095844,134.47,134.44,0.63486971]
[1767872801829,5.49624205,134.46,134.44,0.63486971]
[1767872802016,0.69095844,134.47,134.44,0.63486971]
[1767872802219,5.4957964,134.46,134.44,0.63486971]
[1767872802418,0.69095844,134.47,134.44,0.63486971]
[1767872802619,5.4991908,134.46,134.44,0.63486971]
[1767872802824,0.69095844,134.47,134.44,0.63486971]
[1767872803024,5.49874488,134.46,134.44,0.63486971]
[1767872803329,0.69095844,134.47,134.44,0.63486971]
[1767872803508,5.50294543,134.46,134.44,0.57486972]
[1767872803708,0.69095844,134.47,134.44,0.57486972]
[1767872803920,5.50293966,134.46,134.44,0.57486972]
[1767872804123,0.69095844,134.47,134.44,0.57486972]
[1767872804309,5.50324294,134.46,134.44,0.57486972]
[1767872804631,0.69095844,134.47,134.44,0.57486972]
[1767872804833,5.5075022,134.46,134.44,0.57486972]
[1767872805026,0.69095844,134.47,134.44,0.57486972]
[1767872805226,5.5075022,134.46,134.44,0.57486972]
[1767872805427,0.69095844,134.47,134.44,0.57486972]
[1767872805636,5.50774569,134.46,134.44,0.57486972]
[1767872805820,0.69095844,134.47,134.44,0.57486972]
[1767872806021,5.50774569,134.46,134.44,0.57486972]
[1767872806335,0.69095844,134.47,134.44,0.57486972]
[1767872806509,5.51021468,134.46,134.44,0.57486972]
[1767872806832,0.69095844,134.47,134.44,0.57486972]
[1767872807031,5.51021018,134.46,134.44,0.57486972]
[1767872807231,5.51301864,134.45,134.44,0.57486972]
[1767872808032,5.51301864,134.45,134.44,7.43826242]
[1767872808240,0.69095844,134.47,134.44,12.55861552]
[1767872808539,0.69095844,134.48,134.46,4.42548341]
[1767872808839,0.69095844,134.48,134.45,4.42548341]
[1767872809016,0.69095844,134.48,134.44,44.03940188]
[1767872809206,0.69095844,134.48,134.44,39.61391847]
[1767872809411,0.69095844,134.48,134.42,19.29238274]
[1767872809412,0.69095844,134.47,134.42,19.29238274]
[1767872809609,0.69095844,134.46,134.43,7.43869132]
[1767872811435,0.099,134.44,134.41,7.43963834]
[1767872812649,0.59095844,134.46,134.42,0.69486969]
[1767872812839,0.59095844,134.46,134.42,5.1203531]
[1767872813035,0.59095844,134.46,134.43,0.69486969]
[1767872813221,18.00548341,134.48,134.43,5.1203531]
[1767872813421,18.00548341,134.48,134.44,7.43826242]
[1767872813823,18.00548341,134.48,134.44,26.72878816]
[1767872818644,16.41570645,134.48,134.44,26.72878816]
[1767872819642,13.58,134.48,134.44,26.72878816]
[1767872819843,16.41570645,134.48,134.44,26.72878816]
[1767872820345,5.25791756,134.47,134.44,26.72878816]
[1767872820526,16.41570645,134.48,134.44,26.72878816]
[1767872820726,5.25839975,134.47,134.44,26.72878816]
[1767872820941,16.41570645,134.48,134.44,26.72878816]
[1767872821241,5.25840208,134.47,134.44,26.72878816]
[1767872821540,16.41570645,134.48,134.44,26.72878816]
[1767872821746,5.25824467,134.47,134.44,26.72878816]
[1767872822040,13.58,134.48,134.44,26.72878816]
[1767872822246,5.25824467,134.47,134.44,26.72878816]
[1767872822434,16.41570645,134.48,134.44,26.72878816]
[1767872822628,13.58,134.48,134.45,0.70311859]
[1767872822931,2.83570645,134.5,134.45,0.70311859]
[1767872822932,16.41570645,134.51,134.46,0.70311859]
[1767872823242,5.25809701,134.5,134.46,0.70311859]
[1767872823447,5.25809701,134.49,134.46,0.70311859]
[1767872823634,16.41570645,134.51,134.46,0.70311859]
[1767872823836,5.25713591,134.5,134.46,0.70311859]
[1767872824134,5.25713591,134.49,134.46,2.83570645]
[1767872824337,16.47570646,134.51,134.46,2.83570645]
[1767872824539,5.25626922,134.5,134.47,7.43660295]
[1767872824742,5.25626922,134.49,134.47,7.43660295]
[1767872824942,16.47570646,134.51,134.47,7.43660295]
[1767872825148,5.25626055,134.5,134.47,7.43660295]
[1767872825348,5.25626055,134.49,134.47,7.43660295]
[1767872825546,16.47570646,134.51,134.47,7.43660295]
[1767872825729,5.25549319,134.5,134.47,7.43660295]
[1767872825931,5.25549319,134.49,134.47,7.43660295]
[1767872826235,16.47570646,134.51,134.47,8.11410066]
[1767872826431,5.25560442,134.5,134.47,8.11410066]
[1767872826632,16.47570646,134.51,134.47,8.11410066]
[1767872826850,5.2546892,134.5,134.47,8.11410066]
[1767872827149,16.47570646,134.51,134.47,8.11410066]
[1767872827349,5.25476307,134.5,134.47,8.11410066]
[1767872827548,16.47570646,134.51,134.47,8.11410066]
[1767872827730,5.3144119,134.5,134.47,8.11410066]
[1767872827925,0.06000001,134.5,134.47,8.11410066]
[1767872828140,0.06000001,134.5,134.47,8.05410066]
[1767872828335,13.64000001,134.51,134.48,0.67749771]
[1767872828543,0.06000001,134.54,134.5,0.67749771]
[1767872828759,5.25370002,134.53,134.5,0.67749771]
[1767872828962,2.89570646,134.54,134.5,0.67749771]
[1767872829132,5.25369333,134.53,134.5,0.67749771]
[1767872829332,2.89570646,134.54,134.5,0.67749771]
[1767872829533,5.25153046,134.53,134.5,0.67749771]
[1767872829757,2.89570646,134.54,134.5,8.11235865]
[1767872830042,5.25153629,134.53,134.5,8.11235865]
[1767872830264,2.89570646,134.54,134.5,8.11235865]
[1767872830449,5.2502292,134.53,134.5,8.11235865]
[1767872830646,0.06000001,134.54,134.5,8.11235865]
[1767872830851,5.25023502,134.53,134.5,8.11235865]
[1767872831045,2.89570646,134.54,134.5,8.11235865]
[1767872831244,5.2502292,134.53,134.5,8.11235865]
[1767872831529,2.89570646,134.54,134.5,8.05235865]
[1767872831733,5.24490817,134.53,134.5,8.05235865]
[1767872831957,2.89570646,134.54,134.5,8.05235865]
[1767872832142,5.24490585,134.53,134.5,8.05235865]
[1767872832342,2.89570646,134.54,134.5,8.05235865]
[1767872832535,5.24315695,134.53,134.5,8.05235865]
[1767872832733,0.06000001,134.54,134.5,8.05235865]
[1767872832937,5.24315463,134.53,134.5,8.05235865]
[1767872833152,2.89570646,134.54,134.5,8.05235865]
[1767872833958,0.06000001,134.54,134.5,8.05235865]
[1767872834146,5.24270678,134.53,134.5,8.05235865]
[1767872834347,2.89570646,134.54,134.5,8.05235865]
[1767872836961,0.06000001,134.54,134.5,8.05235865]
[1767872837278,0.06000001,134.54,134.51,0.67749771]
[1767872837569,0.12000001,134.55,134.51,0.67749771]
[1767872837740,10.38797911,134.55,134.51,0.61749771]
[1767872838146,0.1584,134.54,134.51,0.61749771]
[1767872838350,10.3669791,134.55,134.51,0.61749771]
[1767872838739,0.17919,134.54,134.51,0.61749771]
[1767872840040,0.18000001,134.56,134.52,0.67749771]
[1767872840559,0.099,134.55,134.52,0.67749771]
[1767872840764,0.17919,134.54,134.51,0.67749771]
[1767872841139,3.01489645,134.54,134.5,21.69218952]
[1767872842263,3.01410257,134.52,134.5,13.58]
[1767872842861,0.17839612,134.52,134.5,13.58]
[1767872844067,0.18000001,134.53,134.5,21.6924014]
[1767872847558,0.18000001,134.54,134.5,21.6924014]
[1767872851879,3.01570646,134.54,134.5,21.6924014]
[1767872854677,2.93470645,134.53,134.5,14.25749771]
[1767872855188,0.17919,134.52,134.5,13.58]
[1767872855359,3.01570646,134.53,134.5,13.58]
[1767872855874,3.01570646,134.53,134.5,14.24490059]
[1767872856073,0.18000001,134.53,134.5,14.24490059]
[1767872864474,0.18000001,134.53,134.5,21.67982512]
[1767872864883,0.18000001,134.54,134.51,0.66490059]
[1767872865176,3.01570646,134.55,134.51,0.66490059]
[1767872865498,5.24753697,134.54,134.51,0.66490059]
[1767872865711,7.61184084,134.56,134.52,0.66490059]
[1767872865889,5.24771138,134.55,134.52,0.66490059]
[1767872866094,0.18000001,134.56,134.52,0.66490059]
[1767872866292,5.24767158,134.55,134.52,0.66490059]
[1767872866486,0.18000001,134.56,134.52,0.66490059]
[1767872866800,5.24908521,134.55,134.52,0.66490059]
[1767872866997,0.18000001,134.56,134.52,0.66490059]
[1767872867300,5.34808521,134.55,134.52,0.66490059]
[1767872867496,2.93470645,134.55,134.52,0.66490059]
[1767872868388,5.25177951,134.54,134.52,0.66490059]
[1767872868578,2.93470645,134.55,134.52,0.66490059]
[1767872868781,5.43079337,134.54,134.51,8.09874836]
[1767872869082,3.01570646,134.55,134.52,0.66490059]
[1767872869299,5.25160802,134.54,134.52,0.66490059]
[1767872869503,2.83570645,134.55,134.52,0.66490059]
[1767872869709,5.25255844,134.54,134.52,0.66490059]
[1767872869890,2.83570645,134.55,134.52,0.66490059]
[1767872870199,5.25255612,134.54,134.52,0.66490059]
[1767872870404,2.83570645,134.55,134.52,0.66490059]
[1767872870604,5.25371481,134.54,134.52,0.66490059]
[1767872870788,2.83570645,134.55,134.52,0.66490059]
[1767872871098,5.25371481,134.54,134.52,0.66490059]
[1767872871297,2.83570645,134.55,134.52,0.66490059]
[1767872871479,5.25460241,134.54,134.52,0.66490059]
[1767872871681,7.43232325,134.55,134.52,0.66490059]
[1767872871879,5.25459396,134.54,134.52,0.66490059]
[1767872872099,10.2680297,134.55,134.52,0.66490059]
[1767872872286,5.2545998,134.54,134.52,0.66490059]
[1767872872598,10.2680297,134.55,134.52,0.66490059]
[1767872872799,5.25569117,134.54,134.52,0.66490059]
[1767872873000,10.2680297,134.55,134.52,0.66490059]
[1767872873205,5.25568885,134.54,134.52,0.66490059]
[1767872873397,10.2680297,134.55,134.52,0.66490059]
[1767872873595,5.25706155,134.54,134.52,0.66490059]
[1767872873782,10.2680297,134.55,134.52,0.66490059]
[1767872873980,5.25681988,134.54,134.52,0.66490059]
[1767872874193,5.25681988,134.53,134.52,0.66490059]
[1767872874392,5.25681988,134.55,134.52,0.66490059]
[1767872874589,5.25681988,134.54,134.52,0.66490059]
[1767872874803,5.25681988,134.53,134.52,0.66490059]
[1767872879306,10.44761093,134.56,134.52,0.66490059]
[1767872879504,5.25404166,134.55,134.52,0.66490059]
[1767872879704,5.25404166,134.54,134.52,0.66490059]
[1767872879907,10.44761093,134.56,134.52,0.66490059]
[1767872880228,18.57812553,134.57,134.52,0.66490059]
[1767872880229,5.25361441,134.55,134.53,0.66490059]
[1767872880423,2.83570645,134.57,134.53,0.66490059]
[1767872880588,5.25384741,134.56,134.53,0.66490059]
[1767872880904,5.25384741,134.55,134.53,0.66490059]
[1767872881211,4.52374779,134.57,134.53,0.66490059]
[1767872881392,5.25355738,134.56,134.53,8.09810408]
[1767872881593,0.18000001,134.58,134.53,39.59641912]
[1767872881794,0.80181862,134.59,134.54,4.42474779]
[1767872883298,0.1,134.59,134.55,4.42474779]
[1767872883489,0.1,134.59,134.56,7.43162901]
[1767872885701,0.1,134.59,134.56,21.01162901]
[1767872886927,0.79402221,134.59,134.56,13.58]
[1767872887128,0.79402221,134.59,134.54,23.00580034]
[1767872887129,0.69402221,134.57,134.53,11.85786708]
[1767872887300,0.69402221,134.57,134.53,21.01300478]
[1767872887494,0.69402221,134.57,134.53,21.01318192]
[1767872887495,0.69402221,134.56,134.53,21.01318192]
[1767872888319,4.42474779,134.57,134.53,21.01318192]
[1767872888320,5.11877,134.57,134.53,21.01318192]
[1767872889296,0.69402221,134.56,134.53,21.01318192]
[1767872893316,0.65566438,134.57,134.53,44.02114534]
[1767872893534,0.75566438,134.59,134.55,4.42474779]
[1767872893715,0.75566438,134.59,134.56,13.58]
[1767872894609,0.75566438,134.59,134.56,21.01150421]
[1767872895107,0.75566438,134.59,134.56,13.58]
[1767872895621,0.65566438,134.58,134.56,13.58]
[1767872896019,0.65566438,134.57,134.54,21.01252345]
[1767872900626,0.65566438,134.58,134.54,21.01252345]
[1767872902943,0.65566438,134.58,134.54,44.01910563]
[1767872903241,0.75566438,134.59,134.55,4.42474779]
[1767872904932,0.75566438,134.59,134.54,39.59435784]
[1767872905249,0.75566438,134.59,134.55,4.42474779]
[1767872906153,0.75566438,134.59,134.56,7.43162901]
[1767872907153,0.1,134.59,134.57,13.58]
[1767872907352,0.0047423,134.59,134.57,13.58]
[1767872908855,0.0047423,134.59,134.57,21.01089753]
[1767872909048,0.0047423,134.59,134.57,25.43564532]
[1767872909251,0.0047423,134.59,134.57,21.01089753]
[1767872910334,0.0047423,134.59,134.57,25.43564532]
[1767872912648,0.0047423,134.59,134.57,21.01089753]
[1767872923663,0.68412936,134.57,134.55,7.43171372]
[1767872923955,0.68412936,134.57,134.54,7.4325065]
[1767872923956,0.6365002,134.57,134.54,7.4325065]
[1767872924739,0.6365002,134.57,134.54,7.48013566]
[1767872929268,0.6365002,134.57,134.54,11.90488345]
[1767872929450,0.68412936,134.58,134.55,0.04762916]
[1767872929650,0.68412936,134.58,134.55,4.42474779]
[1767872929963,0.68412936,134.58,134.55,4.47237695]
[1767872931268,0.68412936,134.58,134.55,11.90428649]
[1767872931453,0.0047423,134.59,134.56,4.47237695]
[1767872931659,0.0047423,134.59,134.57,13.58]
[1767872934563,0.0047423,134.59,134.57,21.01099895]
[1767872934871,0.0047423,134.59,134.57,25.4833759]
[1767872936273,0.0047423,134.59,134.57,21.05862811]
[1767872936476,0.0047423,134.59,134.57,25.4833759]
[1767872936771,0.0047423,134.59,134.57,25.43574674]
[1767872936970,0.0047423,134.59,134.57,25.4833759]